Cogmind - Beta 15 *** ADVENTURER MODE // 2025.07.16 @ 14:57:36 Player: Gentle Jesus Result: Self-destructed Performance ------------- Evolutions (8) 4000 Regions Visited (12) 2400 Robots Destroyed (45) 225 Value Destroyed (1316) 1316 Prototype IDs (32) 640 Alien Tech Used (0) 0 Bonus (3300) 3300 TOTAL SCORE: 11881 Bonus ------- Triggered Max Security 1000 Aligned with FarCom 300 Acquired SGEMP 2000 Cogmind --------- Core Integrity 29/1450 Matter 12/300 Energy 700/700 System Corruption 0% Temperature Cool (0) Movement Core (50) Location -2/Testing Parts ------- > --- POWER (3) -------- (None) > --- PROPULSION (7) --- (None) > --- UTILITY (10) ----- Experimental Energy Well Improved Terrain Scan Processor Hacking Suite > --- WEAPON (3) ------- (None) > --- INVENTORY (5) ---- Light Quantum Reactor Advanced Plasma Cannon Compact Mass Driver SGEMP Prototype Peak State ------------ > --- POWER ------------ Fission Core Hybrid Antimatter Reactor Micro Antimatter Reactor > --- PROPULSION ------- Cooled Field Propulsion Drive Cooled Field Propulsion Drive Flying Fortress v7 Electron Diverter > --- UTILITY ---------- Advanced Cryofiber Web Advanced Cryofiber Web Medium Storage Unit Enhanced Optical Array Improved Terrain Scanner Improved Terrain Scan Processor Transmission Jammer Hacking Suite > --- WEAPON ----------- Advanced Plasma Cannon Magnetic Acceleration Cannon > --- INVENTORY -------- Improved Ion Engine Light Deuterium Engine Micro Fission Core Nuclear Pulse Thruster Nuclear Pulse Array Compact Matter Pod Enhanced Gauss Cannon Rocket Launcher [Rating: 124] Favorites ----------- Power Improved Ion Engine Engine Improved Ion Engine Power Core Fission Core Reactor Hybrid Antimatter Reactor Propulsion Flying Fortress v7 Wheel Wheel Flight Unit Flying Fortress v7 Utility Medium Storage Unit Device Improved Terrain Scanner Storage Medium Storage Unit Processor Improved Terrain Scan Processor Hackware Hacking Suite Weapon Assault Rifle Energy Gun Plasma Rifle Energy Cannon Plasma Cannon Ballistic Gun Assault Rifle Ballistic Cannon Advanced Assault Cannon Launcher Rocket Launcher Build | -11 -10 -10 -10 -9 -8 -7 -6 -5 -4 -3 -2 -2 ------- Run | Yrd Mat Min Exi Min Mat Fac Fac Fac Fac Res Res Tes Slots Evolved 16 | . . . . . 4 2 2 2 2 2 2 . Power 2 | . . . . . 1 . . 1 . . . . Propulsion 5 | . . . . . 3 . . 1 . 1 . . Utility 8 | . . . . . . 2 2 . 2 . 2 . Weapon 1 | . . . . . . . . . . 1 . . Parts Attached 58 | 7 4 . . 1 3 7 14 3 9 7 . 3 Power 10 | 1 1 . . . 1 . 2 1 3 1 . . Engine 4 | 1 1 . . . 1 . . . 1 . . . Core 4 | . . . . . . . 2 1 1 . . . Reactor 2 | . . . . . . . . . 1 1 . . Propulsion 12 | 2 . . . . 1 1 1 . 1 4 . 2 Treads . | . . . . . . . . . . . . . Leg . | . . . . . . . . . . . . . Wheel 2 | 2 . . . . . . . . . . . . Hover . | . . . . . . . . . . . . . Flight 10 | . . . . . 1 1 1 . 1 4 . 2 Utility 20 | 2 1 . . 1 . 3 7 . 4 1 . 1 Device 13 | 1 . . . 1 . 1 5 . 4 1 . . Storage 3 | 1 1 . . . . . . . . . . 1 Processor 3 | . . . . . . 1 2 . . . . . Hackware 1 | . . . . . . 1 . . . . . . Protection . | . . . . . . . . . . . . . Artifact . | . . . . . . . . . . . . . Weapon 16 | 2 2 . . . 1 3 4 2 1 1 . . Energy Gun 2 | . . . . . . 1 1 . . . . . Energy Cannon 4 | . 2 . . . . 1 . . 1 . . . Ballistic Gun 2 | 2 . . . . . . . . . . . . Ballistic Cannon 5 | . . . . . 1 1 1 1 . 1 . . Launcher 3 | . . . . . . . 2 1 . . . . Special Weapon . | . . . . . . . . . . . . . Impact Weapon . | . . . . . . . . . . . . . Slashing Weapon . | . . . . . . . . . . . . . Piercing Weapon . | . . . . . . . . . . . . . Special Melee Weapon . | . . . . . . . . . . . . . Unidentified Prototypes 9 | . . . . . . . . 1 4 2 . 2 Parts Lost 21 | . . . . . . . 4 . 1 7 . 9 Power 4 | . . . . . . . . . 1 2 . 1 Propulsion 8 | . . . . . . . 1 . . 1 . 6 Utility 6 | . . . . . . . 2 . . 2 . 2 Weapon 3 | . . . . . . . 1 . . 2 . . Highest Loss Streak 5 | . . . . . . . 2 . 1 5 . 5 To Critical Strikes . | . . . . . . . . . . . . . Average Backups 7 | 1 5 6 6 6 8 9 9 8 7 8 9 5 Power 2 | . 1 2 2 2 1 2 2 2 2 3 3 2 Propulsion . | . . . . 1 . . . . . 2 3 1 Utility 2 | . 2 3 3 3 5 5 4 3 1 1 1 . Weapon 1 | . 1 1 . . . 1 2 3 2 2 2 2 Tool/Special . | . . . . . . . . . . . . . Unused Backups 9 | . 1 . . . 1 1 . . . . 2 4 Power 5 | . 1 . . . . . . . . . 2 2 Propulsion 1 | . . . . . . . . . . . . 1 Utility 3 | . . . . . 1 1 . . . . . 1 Weapon . | . . . . . . . . . . . . . Tool/Special . | . . . . . . . . . . . . . Average Slot Usage (%) 75 | . 98 100 100 100 62 74 79 71 77 70 47 32 Engine 7 | . 14 14 14 14 17 15 10 . 1 . . . Core 3 | . . . . . . . 2 13 8 3 . . Reactor 2 | . . . . . . . . . 4 8 4 . Wheel 4 | . 28 28 28 28 . . . . . . . . Flight 11 | . . . . . 8 13 13 11 14 18 17 9 Device 14 | . 14 14 14 14 9 7 13 11 20 16 13 7 Storage 6 | . 14 14 14 14 9 7 6 5 5 4 4 5 Processor 6 | . . . . . . 7 12 11 10 6 4 4 Hackware 3 | . . . . . . 6 6 5 5 4 4 4 Energy Cannon 3 | . 4 14 14 14 1 4 5 . 1 2 . . Ballistic Gun 3 | . 21 14 14 14 9 1 . . . . . . Ballistic Cannon 3 | . . . . . 7 7 5 4 3 2 . . Peak Build Rating 124 | 7 11 10 13 13 44 58 76 84 107 124 67 76 Average Rating 67 | 5 9 10 11 13 43 56 68 80 98 106 66 45 On Entrance 42 | . 7 10 10 13 13 44 58 76 84 98 66 67 Naked Turns . | . . . . . . . . . . . . . Heaviest Build 61 | 13 24 24 24 24 32 38 45 52 59 61 25 27 Greatest Support 72 | 20 20 20 20 20 50 55 55 55 62 72 30 30 Greatest Overweight (x) 2 | . 1 1 1 1 . . . . . 2 . 2 Average Overweight (x) . | . . 1 1 1 . . . . . . . . Largest Inventory Capacity 10 | 8 10 10 10 10 10 10 10 10 10 10 10 10 Average Capacity 9 | 7 9 10 10 10 10 10 10 10 10 10 10 7 Most Carried 10 | 5 7 6 10 10 10 10 10 10 10 10 10 10 Average Carried 8 | 1 5 6 7 9 8 9 9 9 7 9 9 7 Final Capacity 10 | 8 10 10 10 10 10 10 10 10 10 10 10 5 Final Carried 10 | 3 6 6 10 9 10 10 10 9 10 10 10 5 Class Distribution -------------------- 69% | Hacker-Scout 23% | Mutant 4% | Hacker-Mutant Dominant Class ---------------- Mutant | -10/Materials Mutant | -10/Mines Mutant | -10/Exiles Mutant | -9/Mines Mutant | -8/Materials Hacker-Scout | -7/Factory Hacker-Scout | -6/Factory Hacker-Scout | -5/Factory Hacker-Scout | -4/Factory Hacker-Scout | -3/Research Hacker-Scout | -2/Research Hacker-Mutant | -2/Testing Resources | -11 -10 -10 -10 -9 -8 -7 -6 -5 -4 -3 -2 -2 ----------- Run | Yrd Mat Min Exi Min Mat Fac Fac Fac Fac Res Res Tes Matter Collected 1542 | 318 80 9 . 10 126 259 259 . 336 134 . 11 Remotely . | . . . . . . . . . . . . . Salvage Created 1378 | 111 316 52 . . 140 35 282 . 298 144 . . Parts 74 | 7 11 4 . . 10 3 19 . 10 10 . . Haulers Intercepted 1 | . . . . . 1 . . . . . . . Recyclers Shooed 2 | 1 1 . . . . . . . . . . . Parts Field Recycled . | . . . . . . . . . . . . . Retrieved Matter . | . . . . . . . . . . . . . Parts Self-Destructed . | . . . . . . . . . . . . . Prevented . | . . . . . . . . . . . . . Kills | -11 -10 -10 -10 -9 -8 -7 -6 -5 -4 -3 -2 -2 ------- Run | Yrd Mat Min Exi Min Mat Fac Fac Fac Fac Res Res Tes Combat Hostiles Destroyed 23 | . 6 3 . . 2 . 5 . 3 4 . . Guns 5 | . 2 1 . . 2 . . . . . . . Cannons 15 | . 4 2 . . . . 2 . 3 4 . . AOE 3 | . . . . . . . 3 . . . . . Classes Destroyed 11 | 2 2 . . . 3 2 1 . 1 . . . Worker 5 | . . . . . . 1 1 . 1 2 . . Builder 1 | . . . . . 1 . . . . . . . Tunneler 3 | 2 . . . . . . 1 . . . . . Hauler 1 | . . . . . 1 . . . . . . . Recycler 4 | 1 2 . . . . . . . 1 . . . Operator 3 | . . . . . 1 . . . 1 1 . . Watcher 5 | . . . . . . 1 3 . 1 . . . Swarmer 9 | . 3 3 . . . . 3 . . . . . Grunt 5 | . 3 . . . 2 . . . . . . . Sentry 3 | . . . . . . . 2 . . 1 . . Programmer 6 | . . . . . . . . . 3 3 . . Best Kill Streak 11 | 2 8 11 . . 2 2 6 . 4 2 . . Combat Bots Only 6 | . 6 3 . . 2 . 3 . 2 1 . . Max Kills in Single Turn 2 | 1 2 1 . . 1 1 2 . 1 1 . . Gunslinging . | . . . . . . . . . . . . . Exploded 1 | . . . . . . . 1 . . . . . Melee . | . . . . . . . . . . . . . Uniques/NPCs Destroyed . | . . . . . . . . . . . . . Combat | -11 -10 -10 -10 -9 -8 -7 -6 -5 -4 -3 -2 -2 -------- Run | Yrd Mat Min Exi Min Mat Fac Fac Fac Fac Res Res Tes Hostile Shots Fired 339 | . 13 6 . . 2 . 45 . 21 67 . 185 Missed 146 | . 5 3 . . 1 . 27 . 12 18 . 80 Hits 193 | . 8 3 . . 1 . 18 . 9 49 . 105 Melee 7 | . . . . . . . . . . . . 7 Projectile 186 | . 8 3 . . 1 . 18 . 9 49 . 98 Critical Strikes 11 | . . . . . . . . . . 7 . 4 Damage Taken 4524 | 3 59 17 . . 14 . 593 . 519 1198 . 2121 Core 1683 | . 8 . . . . . 60 . . 194 . 1421 Absorbed by Shields 64 | . . . . . . . . . . 64 . . Ignored by Resistances 1114 | . 19 6 . . 4 . 117 . 134 258 . 576 Core Remaining (%) 96 | 100 . . . 96 100 100 92 100 100 85 . . Volleys Fired 133 | 8 11 3 . . 16 5 20 . 34 36 . . Largest 3 | 2 2 2 . . 2 2 2 . 2 3 . . Hottest 199 | 40 136 88 . . 88 100 120 . 142 199 . . Shots Fired 210 | 16 22 6 . . 31 8 28 . 43 56 . . Gun 51 | 16 10 3 . . 15 3 . . 4 . . . Cannon 148 | . 12 3 . . 16 5 25 . 39 48 . . Launcher 11 | . . . . . . . 3 . . 8 . . Special . | . . . . . . . . . . . . . Kinetic 117 | 16 10 3 . . 30 3 17 . 17 21 . . Thermal 82 | . 12 3 . . 1 5 8 . 26 27 . . Explosive 10 | . . . . . . . 2 . . 8 . . Electromagnetic 1 | . . . . . . . 1 . . . . . Robot Hit Streak 20 | 8 10 3 . . 17 5 8 . 10 20 . . Robot Miss Streak 2 | 1 1 1 . . 1 . 1 . 1 2 . . Penetration Max . | . . . . . . . . . . . . . Secondary Targets . | . . . . . . . . . . . . . Shots Hit Robots 124 | 13 15 3 . . 23 5 13 . 16 36 . . Core Hits 61 | 4 9 3 . . 8 2 16 . 9 10 . . Critical Kills 1 | . . 1 . . . . . . . . . . Critical Parts Destroyed 1 | . 1 . . . . . . . . . . . Critical Strikes 6 | . 1 1 . . 1 . . . . 3 . . Destroy 2 | . 1 1 . . . . . . . . . . Blast 4 | . . . . . 1 . . . . 3 . . Melee Attacks . | . . . . . . . . . . . . . Impact . | . . . . . . . . . . . . . Slashing . | . . . . . . . . . . . . . Piercing . | . . . . . . . . . . . . . Sneak Attacks . | . . . . . . . . . . . . . Combat Hostiles . | . . . . . . . . . . . . . Follow-up Attacks . | . . . . . . . . . . . . . Damage Inflicted 4086 | 172 317 55 . . 391 96 685 . 801 1569 . . Guns 599 | 166 111 13 . . 176 50 . . 83 . . . Cannons 2491 | . 206 42 . . 215 46 289 . 495 1198 . . Explosions 990 | . . . . . . . 396 . 223 371 . . Melee . | . . . . . . . . . . . . . Ramming 6 | 6 . . . . . . . . . . . . Kinetic 1897 | 166 111 13 . . 371 46 138 . 340 712 . . Thermal 1307 | . 206 42 . . 20 50 151 . 352 486 . . Explosive 856 | . . . . . . . 376 . 109 371 . . Electromagnetic 20 | . . . . . . . 20 . . . . . Impact . | . . . . . . . . . . . . . Slashing . | . . . . . . . . . . . . . Piercing . | . . . . . . . . . . . . . Highest Corruption 9 | . . . . . . . 5 . 1 9 . . Average Corruption 2 | . . . . . . . 1 . 1 5 . . Corruption Purged . | . . . . . . . . . . . . . Corruption Blocked . | . . . . . . . . . . . . . Effects 11 | . . . . . . . 1 . 4 6 . . Message Errors 1 | . . . . . . . . . . 1 . . Matter Fused 2 | . . . . . . . . . 2 . . . Heat Flow Errors 4 | . . . . . . . . . 1 3 . . Energy Discharges 2 | . . . . . . . 1 . . 1 . . Data Loss (minor) 1 | . . . . . . . . . 1 . . . Weapon Failures 1 | . . . . . . . . . . 1 . . Overload Shots . | . . . . . . . . . . . . . Overflow Damage 354 | . 2 . . . 13 12 2 . 118 207 . . Projectiles 259 | . 2 . . . 13 12 . . 28 204 . . Explosions 95 | . . . . . . . 2 . 90 3 . . Melee . | . . . . . . . . . . . . . Knockbacks 17 | . . . . . 3 . . . 5 9 . . Impact . | . . . . . . . . . . . . . Kinetic 17 | . . . . . 3 . . . 5 9 . . Secondary . | . . . . . . . . . . . . . Self-Inflicted Damage 230 | 3 . . . . . . 38 . 176 13 . . Shots 6 | . . . . . . . 2 . 3 1 . . Rammed 1 | 1 . . . . . . . . . . . . Targets Rammed 1 | 1 . . . . . . . . . . . . Kicked . | . . . . . . . . . . . . . Crushed . | . . . . . . . . . . . . . Highest Temperature 598 | . 284 90 . . 103 139 62 . 296 598 . . Average Temperature 133 | . 169 47 . . 38 67 19 . 98 217 . . Received Heat Transfer 270 | . 24 . . . 9 . 18 . . 30 . 189 Effects 18 | . 1 . . . . . . . 3 14 . . Shutdowns 2 | . . . . . . . . . . 2 . . Energy Bleed 2 | . 1 . . . . . . . . 1 . . Interference 6 | . . . . . . . . . 3 3 . . Matter Decay 3 | . . . . . . . . . . 3 . . Damage (minor) 2 | . . . . . . . . . . 2 . . Damage (major) 3 | . . . . . . . . . . 3 . . Siege Activations . | . . . . . . . . . . . . . Martial Activations . | . . . . . . . . . . . . . Shielding Activations . | . . . . . . . . . . . . . Robots Disrupted . | . . . . . . . . . . . . . Combat Hostiles . | . . . . . . . . . . . . . Robots Corrupted . | . . . . . . . . . . . . . Combat Hostiles . | . . . . . . . . . . . . . Parts Fried . | . . . . . . . . . . . . . Impact Corruptions . | . . . . . . . . . . . . . Robots Melted . | . . . . . . . . . . . . . Combat Hostiles . | . . . . . . . . . . . . . Parts Melted 5 | . 1 . . . . . 1 . 2 1 . . Heat Transferred 1942 | . 370 74 . . 37 111 300 . 400 650 . . Parts Sabotaged 2 | . . . . . . . . . . . . 2 Parts Stolen . | . . . . . . . . . . . . . Parts Stripped . | . . . . . . . . . . . . . Power Chain Reactions . | . . . . . . . . . . . . . Alert | -11 -10 -10 -10 -9 -8 -7 -6 -5 -4 -3 -2 -2 ------- Run | Yrd Mat Min Exi Min Mat Fac Fac Fac Fac Res Res Tes Maximum Alert Level 5 | . . . . . . . . . 1 . . 5 Low Security (%) 90 | 100 100 100 . 100 100 100 100 100 81 100 100 . Level 1 4 | . . . . . . . . . 18 . . . Level 2 . | . . . . . . . . . . . . . Level 3 . | . . . . . . . . . . . . . Level 4 . | . . . . . . . . . . . . . Level 5 . | . . . . . . . . . . . . . High Security . | . . . . . . . . . . . . . Max Security 4 | . . . . . . . . . . . . 99 Peak Influence 1760 | 5 140 112 . . 72 14 89 . 265 69 30 1760 Initial 68 | . . 42 . . . . . . . 68 14 9 Average 119 | 1 34 100 . . 23 1 32 . 105 24 8 1603 Influence Increases 1642 | 15 157 70 . . 101 38 277 . 476 238 30 240 Destroy 0b10 Robot/C 460 | . 120 60 . . 40 . 100 . 60 80 . . Destroy 0b10 Robot/NC 110 | 15 10 . . . 15 10 25 . 20 15 . . Destroy Leader 112 | . 20 10 . . 12 2 36 . 12 20 . . Successful Hack 70 | . 7 . . . . 26 20 . . 17 . . Disable Machine 72 | . . . . . . . . . 54 18 . . Destroy Structure 293 | . . . . . 4 . 21 . 210 58 . . Partial Spotted 45 | . . . . . . . . . 15 15 15 . Lose Combat Pursuer 480 | . . . . . 30 . 75 . 105 15 15 240 Influence Decreases 1483 | 15 27 98 102 . 101 38 277 . 324 361 39 101 Entered New Map 300 | . . 88 102 . . . . . . 84 15 11 Time Decay 992 | 15 27 10 . . 101 36 245 . 314 220 24 . Lost Part 189 | . . . . . . . 32 . 10 57 . 90 Lost Ally 2 | . . . . . . 2 . . . . . . Squads Dispatched 22 | . 1 . . . 1 1 4 . 6 1 1 7 Investigation 5 | . 1 . . . 1 . 1 . 1 . 1 . Extermination 6 | . . . . . . 1 1 . 3 1 . . Reinforcement 4 | . . . . . . . 2 . 2 . . . Assault 7 | . . . . . . . . . . . . 7 Garrison . | . . . . . . . . . . . . . Intercept . | . . . . . . . . . . . . . Searches Triggered . | . . . . . . . . . . . . . Construction Impeded 1 | . . . . . . . . . 1 . . . Haulers Reinforced . | . . . . . . . . . . . . . Active Scanning Responses . | . . . . . . . . . . . . . Cargo Convoy Interrupts . | . . . . . . . . . . . . . Stealth | -11 -10 -10 -10 -9 -8 -7 -6 -5 -4 -3 -2 -2 --------- Run | Yrd Mat Min Exi Min Mat Fac Fac Fac Fac Res Res Tes Distress Signals 7 | . . . . . . . 1 . 1 1 1 3 Communications Jammed 1 | . . . . . . . . . . 1 . . Distress Signals . | . . . . . . . . . . . . . Times Spotted 86 | . 8 2 . . 6 2 15 . 9 8 6 30 Peak Tracking Total 18 | . 7 2 . . 2 1 4 . 7 4 5 18 Tactical Retreats 13 | . . . . . 1 . 3 . 3 1 1 4 Traps | -11 -10 -10 -10 -9 -8 -7 -6 -5 -4 -3 -2 -2 ------- Run | Yrd Mat Min Exi Min Mat Fac Fac Fac Fac Res Res Tes Traps Triggered 8 | . 1 . . . . 1 2 . . 3 . 1 Indirectly . | . . . . . . . . . . . . . Trap Hack Attempts . | . . . . . . . . . . . . . Triggered . | . . . . . . . . . . . . . Disarmed . | . . . . . . . . . . . . . Reprogrammed . | . . . . . . . . . . . . . Reused . | . . . . . . . . . . . . . Traps Extracted . | . . . . . . . . . . . . . Installed . | . . . . . . . . . . . . . Triggered . | . . . . . . . . . . . . . Machines | -11 -10 -10 -10 -9 -8 -7 -6 -5 -4 -3 -2 -2 ---------- Run | Yrd Mat Min Exi Min Mat Fac Fac Fac Fac Res Res Tes Machines Disabled 8 | . . . . . . . . . 6 2 . . Max in Single Turn 4 | . . . . . . . . . 4 1 . . Garrison Access 1 | . . . . . . . . . . 1 . . Machines Repaired . | . . . . . . . . . . . . . Machines Dismantled . | . . . . . . . . . . . . . Machines Sabotaged . | . . . . . . . . . . . . . Overloaded Fab Kills . | . . . . . . . . . . . . . Hacking | -11 -10 -10 -10 -9 -8 -7 -6 -5 -4 -3 -2 -2 --------- Run | Yrd Mat Min Exi Min Mat Fac Fac Fac Fac Res Res Tes Machines Accessed 27 | . 1 . 1 . 2 4 7 2 1 4 5 . Terminals 16 | . 1 . . . 2 3 3 1 1 3 2 . Fabricators 3 | . . . . . . . 2 . . . 1 . Repair Stations 1 | . . . . . . . . . . . 1 . Recycling Units 1 | . . . . . . . . 1 . . . . Scanalyzers 1 | . . . . . . . 1 . . . . . Garrison Access 4 | . . . . . . 1 1 . . 1 1 . Total Hacks 56 | . 1 . 1 . 7 9 14 4 2 9 9 . Successful 19 | . 1 . 1 . 1 2 5 2 1 4 2 . Failed 37 | . . . . . 6 7 9 2 1 5 7 . Catastrophic 8 | . . . . . . 1 3 1 1 1 1 . Database Lockouts . | . . . . . . . . . . . . . Manual 26 | . 1 . 1 . 7 5 3 2 1 4 2 . Terminals 33 | . 1 . . . 7 7 3 2 2 8 3 . Fabricators 5 | . . . . . . . 3 . . . 2 . Repair Stations 2 | . . . . . . . . . . . 2 . Recycling Units 2 | . . . . . . . . 2 . . . . Scanalyzers 5 | . . . . . . . 5 . . . . . Garrison Access 8 | . . . . . . 2 3 . . 1 2 . Terminal Hacks 9 | . 1 . 1 . 1 1 . . 1 3 1 . Level Access Points 2 | . . . . . . 1 . . . 1 . . Branch Access Points 1 | . 1 . . . . . . . . . . . Alert Level 3 | . . . . . . . . . 1 1 1 . Zone Layout 2 | . . . . . 1 . . . . 1 . . Proto ID Catalog 1 | . . . 1 . . . . . . . . . Fabricator Hacks 1 | . . . . . . . 1 . . . . . Network Status 1 | . . . . . . . 1 . . . . . Repair Station Hacks 1 | . . . . . . . . . . . 1 . Scan Component 1 | . . . . . . . . . . . 1 . Recycling Unit Hacks 2 | . . . . . . . . 2 . . . . Report Inventory 1 | . . . . . . . . 1 . . . . Retrieve Components 1 | . . . . . . . . 1 . . . . Scanalyzer 4 | . . . . . . . 4 . . . . . Insert Component 2 | . . . . . . . 2 . . . . . Analyze 2 | . . . . . . . 2 . . . . . Garrison Access Hacks 1 | . . . . . . . . . . 1 . . Seal Access 1 | . . . . . . . . . . 1 . . Unauthorized Hacks 1 | . . . . . . 1 . . . . . . Terminals 1 | . . . . . . 1 . . . . . . Assimilate 1 | . . . . . . 1 . . . . . . Fabricators . | . . . . . . . . . . . . . Repair Stations . | . . . . . . . . . . . . . Recycling Units . | . . . . . . . . . . . . . Scanalyzers . | . . . . . . . . . . . . . Garrison Access . | . . . . . . . . . . . . . Data Cores Recovered 2 | . . . . . 1 . . . 1 . . . Used . | . . . . . . . . . . . . . Hacking Detections 22 | . . . . . 2 3 7 1 1 3 5 . Full Trace Events 3 | . . . . . 1 . 1 . . . 1 . Feedback Events . | . . . . . . . . . . . . . Feedback Blocked . | . . . . . . . . . . . . . Robot Schematics Acquired . | . . . . . . . . . . . . . Robots Built . | . . . . . . . . . . . . . Authchips . | . . . . . . . . . . . . . Time . | . . . . . . . . . . . . . Total Robot Build Rating . | . . . . . . . . . . . . . Part Schematics Acquired 2 | . . . . . . . 2 . . . . . Parts Built . | . . . . . . . . . . . . . Authchips . | . . . . . . . . . . . . . Time . | . . . . . . . . . . . . . Total Part Build Rating . | . . . . . . . . . . . . . Parts Repaired . | . . . . . . . . . . . . . Time . | . . . . . . . . . . . . . Parts Recycled . | . . . . . . . . . . . . . Recycled Matter . | . . . . . . . . . . . . . Retrieved Matter . | . . . . . . . . . . . . . Retrieved Components 3 | . . . . . . . . 3 . . . . Parts Scanalyzed 2 | . . . . . . . 2 . . . . . Part Schematics Acquired 2 | . . . . . . . 2 . . . . . Parts Damaged . | . . . . . . . . . . . . . Bothacking | -11 -10 -10 -10 -9 -8 -7 -6 -5 -4 -3 -2 -2 ------------ Run | Yrd Mat Min Exi Min Mat Fac Fac Fac Fac Res Res Tes Used RIF Installer . | . . . . . . . . . . . . . Robots Hacked . | . . . . . . . . . . . . . Non-combat . | . . . . . . . . . . . . . Combat . | . . . . . . . . . . . . . Robot Hacks Applied . | . . . . . . . . . . . . . Relay Couplers Released . | . . . . . . . . . . . . . Fabnet Peak Effective % . | . . . . . . . . . . . . . Robots Rewired . | . . . . . . . . . . . . . Allies Hacked . | . . . . . . . . . . . . . Hacks Repelled . | . . . . . . . . . . . . . Allies | -11 -10 -10 -10 -9 -8 -7 -6 -5 -4 -3 -2 -2 -------- Run | Yrd Mat Min Exi Min Mat Fac Fac Fac Fac Res Res Tes Total Allies 1 | . . . . . . 1 . . . . . . Largest Group 1 | . . . . . . 1 . . . . . . Highest-Rated Group 26 | . . . . . . 26 . . . . . . Highest-Rated Ally 26 | . . . . . . 26 . . . . . . Total Orders 2 | . . . . . . . . . 2 . . . EXPLORE 2 | . . . . . . . . . 2 . . . Ally Attacks . | . . . . . . . . . . . . . Total Damage . | . . . . . . . . . . . . . Kills . | . . . . . . . . . . . . . Allies Corrupted . | . . . . . . . . . . . . . Allies Melted . | . . . . . . . . . . . . . Intel | -11 -10 -10 -10 -9 -8 -7 -6 -5 -4 -3 -2 -2 ------- Run | Yrd Mat Min Exi Min Mat Fac Fac Fac Fac Res Res Tes Active Infowar (turns) 3858 | 4 157 32 268 83 334 483 605 77 993 596 137 89 Optics 1927 | . . . . . . . 562 77 993 295 . . Terrain 2973 | . . . . . . 482 599 77 993 596 137 89 Structural 419 | . . . . 70 334 15 . . . . . . Seismic 474 | 4 157 32 268 13 . . . . . . . . Jamming 1205 | . . . . . . . 43 . 526 596 40 . ECM 746 | . . . . . . . 8 77 661 . . . Robot Analysis Total . | . . . . . . . . . . . . . Derelict Logs Recovered . | . . . . . . . . . . . . . Drone Launches 2 | . . . . . . . . . 2 . . . Drone Recoveries . | . . . . . . . . . . . . . Exploration | -11 -10 -10 -10 -9 -8 -7 -6 -5 -4 -3 -2 -2 ------------- Run | Yrd Mat Min Exi Min Mat Fac Fac Fac Fac Res Res Tes Turns Passed 4058 | 110 157 32 268 83 334 483 605 77 993 596 137 183 Spaces Moved 4893 | 90 109 25 280 86 380 696 760 81 959 578 384 465 Core 66 | 9 . . . . . . . . . . . 57 Treads . | . . . . . . . . . . . . . Legs . | . . . . . . . . . . . . . Wheels 581 | 81 109 25 280 86 . . . . . . . . Hover . | . . . . . . . . . . . . . Flight 4246 | . . . . . 380 696 760 81 959 578 384 408 Fastest Speed 29 | 50 80 95 95 95 50 39 39 39 35 29 29 29 Average Speed 44 | 77 85 95 95 95 50 40 39 39 35 36 29 36 Slowest Speed 200 | 80 95 95 95 95 50 50 50 39 39 158 29 200 Overloaded Moves . | . . . . . . . . . . . . . Propulsion Burnouts . | . . . . . . . . . . . . . Robots Hopped 45 | . . . . . 11 7 2 . 2 2 8 13 Potential Cave-ins 6 | . . . . . . . 3 . 3 . . . Cave-ins Triggered 2 | . . . . . . . 1 . . 1 . . Exploration Rate (%) 26 | 4 17 10 63 27 33 18 29 4 33 21 12 68 Regions Visited 12 Branch Regions 4 Pre-discovered Areas . | . . . . . . . . . . . . . Known Exits Taken 3 | . 1 . . . . 1 . . . 1 . . Unknown Exits Taken 9 | 1 . 1 1 1 1 . 1 1 1 . 1 . Scrap Searched 1 | . . . . 1 . . . . . . . . Spaces Dug 42 | . . . . . 1 . 8 . 23 10 . . Terrain Destroyed 177 | . . . . . 3 . 22 . 123 29 . . Melee . | . . . . . . . . . . . . . Projectile 52 | . . . . . 3 . 8 . 26 15 . . AOE 125 | . . . . . . . 14 . 97 14 . . Terrain Rammed . | . . . . . . . . . . . . . Walls Destroyed . | . . . . . . . . . . . . . Machines Disabled . | . . . . . . . . . . . . . Actions | -11 -10 -10 -10 -9 -8 -7 -6 -5 -4 -3 -2 -2 --------- Run | Yrd Mat Min Exi Min Mat Fac Fac Fac Fac Res Res Tes Total 6528 | 113 151 27 282 87 482 880 1037 127 1570 908 401 463 Wait 1377 | . 15 . . . 84 167 233 33 553 267 22 3 Move 4800 | 90 108 24 279 85 359 682 754 80 954 573 369 443 Hop 36 | . . . . . 9 6 2 . 2 2 6 9 Pick Up 47 | 7 7 . 2 . 7 4 6 3 4 4 2 1 Fast Attach 24 | 4 . . . . 1 3 2 3 6 3 . 2 Attach 32 | 3 2 . . 1 2 3 6 2 6 4 . 3 Detach 6 | . . . . . . 1 . 1 3 1 . . Swap 17 | . 3 . . . . 1 7 . 1 5 . . Drop 43 | 1 5 . 1 1 4 4 6 5 7 5 2 2 Fire 133 | 8 11 3 . . 16 5 20 . 34 36 . . Melee . | . . . . . . . . . . . . . Ram . | . . . . . . . . . . . . . Kick . | . . . . . . . . . . . . . Crush . | . . . . . . . . . . . . . Escape Stasis 13 | . . . . . . 4 1 . . 8 . . Rewire . | . . . . . . . . . . . . . Trap . | . . . . . . . . . . . . . Miscellaneous . | . . . . . . . . . . . . . Route ------- -11/Scrapyard -10/Materials (discovered 2 exits: *Min x2) -10/Mines -10/Exiles (discovered 2 exits: [*Min x2]) -9/Mines -8/Materials -7/Factory (discovered 4 exits: *Fac x4) -6/Factory -5/Factory -4/Factory -3/Research (discovered 3 exits: *Res x3) -2/Research -2/Testing History --------- Turn | Location | Event 15 | -11/Scrapyard | Discovered new exit (range 16) 111 | -11/Scrapyard | Entered Materials 151 | -10/Materials | Identified exit to Mines 268 | -10/Materials | Entered Mines 297 | -10/Mines | Deemed a non-threat by the Exiles lab entrance 297 | -10/Mines | Discovered new exit (range 5) 300 | -10/Mines | Entered Exiles 316 | -10/Exiles | Build established: Mutant 323 | -10/Exiles | Discovered new exit (range 15) 339 | -10/Exiles | Met 8R-AWN 356 | -10/Exiles | Met EX-HEX 396 | -10/Exiles | Met EX-BIN 420 | -10/Exiles | Aligned with FarCom system 421 | -10/Exiles | Given EX-Vault access code 450 | -10/Exiles | Opened EX-Vault 458 | -10/Exiles | Found Flying Fortress v7 478 | -10/Exiles | Warned to stay clear of 0b10 Research branches 503 | -10/Exiles | Met EX-DEC 558 | -10/Exiles | Discovered new exit (range 10) 568 | -10/Exiles | Left Exiles lab with Flying Fortress v7 568 | -10/Exiles | Entered Mines 637 | -9/Mines | Discovered new exit (range 13) 651 | -9/Mines | Entered Materials 651 | -8/Materials | Evolved 4 slots: Power x1, Propulsion x3 944 | -8/Materials | Discovered new exit (range 15) 985 | -8/Materials | Entered Factory 985 | -7/Factory | Evolved 2 slots: Utility x2 1126 | -7/Factory | Identified exit to Factory 1286 | -7/Factory | Build established: Hacker-Scout 1468 | -7/Factory | Entered another Factory area 1468 | -6/Factory | Evolved 2 slots: Utility x2 2006 | -6/Factory | Spotted B-75 Beast 2044 | -6/Factory | Discovered new exit (range 13) 2058 | -6/Factory | Crushed by falling debris 2073 | -6/Factory | Entered another Factory area 2073 | -5/Factory | Evolved 2 slots: Power x1, Propulsion x1 2080 | -5/Factory | Discovered new exit (range 17) 2150 | -5/Factory | Entered another Factory area 2150 | -4/Factory | Evolved 2 slots: Utility x2 2631 | -4/Factory | Spotted B-86 Titan 2757 | -4/Factory | Spotted B-86 Titan 3110 | -4/Factory | Discovered new exit (range 11) 3143 | -4/Factory | Entered Research 3143 | -3/Research | Evolved 2 slots: Propulsion x1, Weapon x1 3301 | -3/Research | Identified exit to Research 3438 | -3/Research | Crushed by falling debris 3684 | -3/Research | Lost 5 parts (2p1n2w) 3739 | -3/Research | Entered another Research area 3739 | -2/Research | Evolved 2 slots: Utility x2 3872 | -2/Research | Discovered new exit (range 11) 3876 | -2/Research | Entered Testing 3877 | -2/Testing | Maximum security lockdown engaged 3892 | -2/Testing | Spotted Striker 3894 | -2/Testing | Spotted Striker 3905 | -2/Testing | Spotted Alpha 7 3912 | -2/Testing | Stole the SGEMP Prototype 3937 | -2/Testing | Lost 3 parts (1p2n) 4004 | -2/Testing | Core integrity fell below 50% 4023 | -2/Testing | Lost 5 parts (3n2u) 4036 | -2/Testing | Spotted Superbehemoth 4054 | -2/Testing | Core integrity fell below 20% 4059 | -2/Testing | Self-destructed Last Messages --------------- Acquired Prototype Flight Unit. Identified Cld. Impulse Thruster. Penetrated by Slug. Slug penetrates Wall. Penetrated by Slug. Slug penetrates Wall. Penetrated by Slug. Slug penetrates Wall. Penetrated by Slug. Slug penetrates Wall. Slug penetrates H-88 Terminator. Slug penetrates Wall. Slug penetrates H-88 Terminator. Slug penetrates Wall. Penetrated by Slug. Slug penetrates Wall. Penetrated by Slug. Cld. Impulse Thruster destroyed. Slug penetrates H-88 Terminator. Penetrated by Slug. Map ----- +----------------------------------------------------+ | ??????????????????????#" """#????????????????? | | ??????????????????????#" #????????????????? | | ?????????????????????## ####????????????????? | | ?????????????????????# #???????????????????? | | ?????????????????????# #???????????????????? | | ?????????????????????# ##########??????????? | | ?????????????????????# # = #??????????? | | ?????????????????????#### # #??????????? | | ????????????????????????# # = #??????????? | | ????????????????????????# # #??????????? | | ????????????????????????# + """ #??????????? | | ????????????????????????# # """" #??????????? | | ??????????????????????### # """" #??????????? | | ??????????????????????#"" # """ #??????????? | | ??????????????????????#"T # #??????????? | | ??????????????????????### ##########??????????? | | ????????????????????????# #???????????????????? | | ????????????????????????# h #???????????????????? | | ??????????????########??# hh #???????????????????? | | ??????????????# ??# #???????????????????? | | ??????????????# ?#K h#???????????????????? | | ??????????????# ?# #???????????????????? | | ??????????????# # #???????????????????? | | ??????????????# #K h#???????????????????? | | ??????????????# ; #???????????????????? | | ??????????????# #@ #???????????????????? | | ??????????????# # #???????????????????? | | ??????????????#########?# #####???????????????? | | ????????????????????????# h# #???????????????? | | ????????????????????????# # #???????????????? | | ????????????????????????# h# ####????????????? | | ????????????????????????+ h +????????????? | | ????????????????????????# #???????? #??? | | ????????????????????????# +??????]! #??? | | ????????????????????????# #???? [ #??? | | ????????????????????????########### #?? #??? | | ?????????????????########??######## # #??? | | ????????????????? = ?# = +g+ #??? | | ????????????????? ??# g# # #??? | | ????????????????? ??#* ] ??#g#?? #??? | | ??????????????????" ???####????# #???? #??? | | ??????????????????"S"" ???????????# #????######??? | | ???????????????????"""????????????# #????# #??? | | ??????????????????? ??????????### ###??# #??? | | ?????????????????###+############ !#??# #??? | | ?????????????????# ! #### #??? | | ?#???????????????# / #??? | | ????#????????????# ! #### #??? | | #????????????????# ############ #??# ! !#??? | | ?????#???????????# #??????????## ####??# ==!#??? | +----------------------------------------------------+ Best States ------------- Heat Dissipation 51 Energy Generation 41 Energy Capacity 1700 Matter Stores 300 Matter Capacity 300 Sight Range 22 Terrain Scan Range 16 Terrain Scan Density 110 ECM Strength 2 Jamming Range 12 Base Temperature (-) 200 Resistance: KI 20 Resistance: TH 20 Resistance: EX 20 Resistance: EM 20 Resistance: I 20 Resistance: S 20 Resistance: P 20 Evasion (%) 64 Offensive Hacking 20 Item Schematics ----------------- Imp. Terrain Scanner | -6/Factory | Scanalyzed Cesium-ion Thruster | -6/Factory | Scanalyzed Robot Schematics ------------------ None Fabricated ------------ Nothing Repaired ---------- Nothing Alien Tech Used ----------------- None Achievements -------------- None Challenges ------------ None Game ------ Seed SpacefoldTractorGreatsword Manual? 0 Play Time 00:58:07 Cumulative 101.8 hours Start 2025.07.16 @ 13:04:28 End 2025.07.16 @ 14:57:36 Sessions 5 Manual Loads 0 Difficulty Adventurer Special Mode None Game No. 82 Rogue 0 Adventurer 82 Explorer 0 Win Type - Total 1 Types 1/0/0/0/0/0/0/0/0/0 Lore% 51 Gallery% 51 Achievement% 49 Wizard Run 0 Options --------- Layout 1 ASCII 0 Keyboard 0 Movement Mouse Keybinds 0 Fullscreen 1 Font 32/SmallcapsGlow Map View 50x40 Zoom Use 1% Tactical HUD 0 Map Filters NONE Filters NONE Steam 1 RUN: 07c21608-efef-43f3-8b9a-19916c041c59